fUSD/lending_fUSD_20260530
["ID","MTS","AMOUNT","RATE_DAILY","PERIOD"]
[423424258,1780105839000,-151.0,0.00013699,2]
[423424257,1780105839000,-151.0,0.00013699,2]
[423424259,1780105839000,-151.0,0.00013699,2]
[423424261,1780105839000,-151.0,0.00013699,2]
[423424268,1780105839000,-279.960539,0.00013699,2]
[423424267,1780105839000,-151.0,0.00013699,2]
[423424241,1780105839000,-151.0,0.00013699,2]
[423424278,1780105839000,-187.71242717,0.00013699,10]
[423424255,1780105839000,-151.0,0.00013699,2]
[423424232,1780105839000,-500.0,0.00013698,2]
[423424215,1780105839000,-500.0,0.00013698,2]
[423424234,1780105839000,-500.0,0.00013698,2]
[423424270,1780105839000,-200.0,0.00013699,2]
[423424211,1780105839000,-500.0,0.00013698,2]
[423424212,1780105839000,-500.0,0.00013698,2]
[423424210,1780105839000,-500.0,0.00013698,2]
[423424207,1780105839000,-500.0,0.00013698,2]
[423424208,1780105839000,-500.0,0.00013698,2]
[423424209,1780105839000,-500.0,0.00013698,2]
[423424224,1780105839000,-197.65921909,0.00013698,2]
[423424225,1780105839000,-154.62769041,0.00013698,2]
[423424214,1780105839000,-515.98565567,0.00013698,2]
[423424223,1780105839000,-500.0,0.00013698,2]
[423424213,1780105839000,-500.0,0.00013698,2]
[423424217,1780105839000,-500.0,0.00013698,2]
[423424216,1780105839000,-500.0,0.00013698,2]
[423424233,1780105839000,-500.0,0.00013698,2]
[423424219,1780105839000,-500.0,0.00013698,2]
[423424218,1780105839000,-500.0,0.00013698,2]
[423424222,1780105839000,-500.0,0.00013698,2]
[423424221,1780105839000,-500.0,0.00013698,2]
[423424227,1780105839000,-500.0,0.00013698,2]
[423424237,1780105839000,-1365.03,0.00013699,2]
[423424236,1780105839000,-500.0,0.00013698,2]
[423424235,1780105839000,-500.0,0.00013698,2]
[423424238,1780105839000,-166.66,0.00013699,2]
[423424229,1780105839000,-500.0,0.00013698,2]
[423424226,1780105839000,-500.0,0.00013698,2]
[423424228,1780105839000,-500.0,0.00013698,2]
[423424239,1780105839000,-151.0,0.00013699,2]
[423424230,1780105839000,-565.72873569,0.00013698,2]
[423424231,1780105839000,-500.0,0.00013698,2]
[423424220,1780105839000,-500.0,0.00013698,2]
[423424277,1780105839000,-500.0,0.00013699,10]
[423424315,1780105839000,-211.71548338,0.00013836,2]
[423424279,1780105839000,-211.71548338,0.000137,2]
[423424309,1780105839000,-934.80383794,0.00013815,2]
[423424313,1780105839000,-211.71548338,0.00013821,2]
[423424312,1780105839000,-150.0,0.00013821,2]
[423424316,1780105839000,-150.0,0.00013844,2]
[423424318,1780105839000,-211.71548338,0.00013851,2]
[423424317,1780105839000,-150.0,0.00013851,2]
[423424314,1780105839000,-166.66,0.00013836,2]
[423424311,1780105839000,-150.0,0.00013817,2]
[423424310,1780105839000,-150.0,0.00013815,2]
[423424319,1780105839000,-150.0,0.00013853,2]
[423424307,1780105839000,-211.71548338,0.00013806,2]
[423424320,1780105839000,-150.0,0.00013862,2]
[423424322,1780105839000,-211.71548338,0.00013881,2]
[423424331,1780105839000,-211.71548338,0.00013927,2]
[423424324,1780105839000,-150.0,0.00013896,2]
[423424330,1780105839000,-150.0,0.00013926,2]
[423424321,1780105839000,-211.71548338,0.00013866,2]
[423424323,1780105839000,-150.0,0.0001389,2]
[423424328,1780105839000,-150.0,0.00013916,2]
[423424332,1780105839000,-150.0,0.00013942,2]
[423424327,1780105839000,-211.71548338,0.00013912,2]
[423424329,1780105839000,-150.0,0.00013916,2]
[423424326,1780105839000,-150.0,0.00013909,2]
[423424325,1780105839000,-211.71548338,0.00013896,2]
[423424335,1780105839000,-150.0,0.00013956,2]
[423424269,1780105839000,-2500.0,0.00013699,2]
[423424336,1780105839000,-211.71548338,0.00013957,2]
[423424338,1780105839000,-211.71548338,0.00013972,2]
[423424333,1780105839000,-211.71548338,0.00013942,2]
[423424308,1780105839000,-150.0,0.00013809,2]
[423424306,1780105839000,-150.0,0.00013806,2]
[423424337,1780105839000,-150.0,0.00013963,2]
[423424300,1780105839000,-211.71548338,0.00013775,2]
[423424271,1780105839000,-165.74,0.00013699,2]
[423424296,1780105839000,-150.0,0.0001376,2]
[423424276,1780105839000,-500.0,0.00013699,10]
[423424272,1780105839000,-154.0,0.00013699,2]
[423424275,1780105839000,-500.0,0.00013699,10]
[423424273,1780105839000,-154.0,0.00013699,2]
[423424281,1780105839000,-150.0,0.000137,2]
[423424291,1780105839000,-1128.82,0.00013739,2]
[423424292,1780105839000,-150.0,0.00013744,2]
[423424280,1780105839000,-150.0,0.000137,2]
[423424290,1780105839000,-211.71548338,0.0001373,2]
[423424289,1780105839000,-1139.07,0.00013722,2]
[423424288,1780105839000,-150.0,0.00013722,2]
[423424282,1780105839000,-244.53104555,0.000137,2]
[423424283,1780105839000,-150.0,0.00013702,2]
[423424274,1780105839000,-500.0,0.00013699,10]
[423424284,1780105839000,-150.0,0.00013702,2]
[423424285,1780105839000,-150.0,0.00013707,2]
[423424299,1780105839000,-150.0,0.00013773,2]
[423424298,1780105839000,-150.0,0.00013769,2]
[423424305,1780105839000,-500.0,0.00013804,2]
[423424304,1780105839000,-2000.0,0.00013803,2]
[423424303,1780105839000,-6453.0,0.00013792,2]
[423424297,1780105839000,-211.71548338,0.0001376,2]
[423424301,1780105839000,-150.0,0.0001378,2]
[423424295,1780105839000,-284.75,0.0001376,2]
[423424293,1780105839000,-211.71548338,0.00013745,2]
[423424294,1780105839000,-474.61,0.00013758,2]
[423424287,1780105839000,-211.71548338,0.00013715,2]
[423424302,1780105839000,-211.71548338,0.0001379,2]
[423424286,1780105839000,-150.0,0.00013715,2]
[423424385,1780105840000,-211.71548338,0.00014169,2]
[423424375,1780105840000,-150.0,0.0001413,2]
[423424377,1780105840000,-500.0,0.00014142,2]
[423424376,1780105840000,-211.71548338,0.00014139,2]
[423424373,1780105840000,-211.71548338,0.00014123,2]
[423424371,1780105840000,-166.66,0.0001411,2]
[423424363,1780105840000,-211.71548338,0.00014063,2]
[423424367,1780105840000,-211.71548338,0.00014093,2]
[423424384,1780105840000,-150.0,0.00014169,2]
[423424365,1780105840000,-150.0,0.00014078,2]
[423424374,1780105840000,-150.0,0.0001413,2]
[423424381,1780105840000,-150.0,0.00014154,2]
[423424379,1780105840000,-150.0,0.00014143,2]
[423424380,1780105840000,-150.0,0.00014146,2]
[423424387,1780105840000,-211.71548338,0.00014184,2]
[423424386,1780105840000,-150.0,0.00014182,2]
[423424378,1780105840000,-114548.3597961,0.00014143,2]
[423424382,1780105840000,-211.71548338,0.00014154,2]
[423424389,1780105840000,-150.0,0.0001419,2]
[423424391,1780105840000,-150.0,0.00014201,2]
[423424388,1780105840000,-629.71999667,0.00014189,2]
[423424390,1780105840000,-211.71548338,0.00014199,2]
[423424393,1780105840000,-150.0,0.00014214,2]
[423424401,1780105840000,-211.71548338,0.00014245,2]
[423424392,1780105840000,-54847.65961389,0.00014211,2]
[423424361,1780105840000,-150.0,0.0001405,2]
[423424395,1780105840000,-150.0,0.00014219,2]
[423424368,1780105840000,-150.0,0.00014096,2]
[423424351,1780105840000,-211.71548338,0.00014002,2]
[423424362,1780105840000,-150.0,0.00014059,2]
[423424403,1780105840000,-934.80383794,0.00014249,2]
[423424342,1780105840000,-150.0,0.00013987,2]
[423424341,1780105840000,-150.0,0.00013987,2]
[423424344,1780105840000,-504.31099771,0.00013989,2]
[423424346,1780105840000,-377.06035753,0.00013989,2]
[423424343,1780105840000,-211.71548338,0.00013987,2]
[423424345,1780105840000,-500.0,0.00013989,2]
[423424339,1780105840000,-166.66,0.00013973,2]
[423424340,1780105840000,-150.0,0.00013987,2]
[423424347,1780105840000,-500.0,0.00013989,2]
[423424350,1780105840000,-250.0,0.00014,2]
[423424349,1780105840000,-150.0,0.00013999,2]
[423424366,1780105840000,-211.71548338,0.00014078,2]
[423424348,1780105840000,-57395.62766503,0.0001399,2]
[423424352,1780105840000,-150.0,0.00014003,2]
[423424353,1780105840000,-4154.99007666,0.00014015,2]
[423424356,1780105840000,-934.80383794,0.00014032,2]
[423424355,1780105840000,-150.0,0.00014023,2]
[423424359,1780105840000,-150.0,0.00014036,2]
[423424357,1780105840000,-150.0,0.00014033,2]
[423424358,1780105840000,-211.71548338,0.00014033,2]
[423424360,1780105840000,-211.71548338,0.00014048,2]
[423424370,1780105840000,-150.0,0.00014109,2]
[423424369,1780105840000,-211.71548338,0.00014108,2]
[423424372,1780105840000,-150.0,0.00014123,2]
[423424364,1780105840000,-150.0,0.00014073,2]
[423424354,1780105840000,-211.71548338,0.00014017,2]
[423424402,1780105840000,-166.66,0.00014247,2]
[423424436,1780105840000,-150.0,0.00014401,2]
[423424396,1780105840000,-211.71548338,0.00014229,2]
[423424431,1780105840000,-150.0,0.00014377,2]
[423424440,1780105840000,-173.96,0.00014426,2]
[423424428,1780105840000,-211.71548338,0.00014351,2]
[423424432,1780105840000,-211.71548338,0.00014381,2]
[423424433,1780105840000,-166.66,0.00014384,2]
[423424439,1780105840000,-150.0,0.00014424,2]
[423424435,1780105840000,-211.71548338,0.00014396,2]
[423424438,1780105840000,-150.0,0.00014415,2]
[423424437,1780105840000,-211.71548338,0.00014411,2]
[423424434,1780105840000,-150.0,0.00014396,2]
[423424451,1780105840000,-150.0,0.00014487,2]
[423424452,1780105840000,-150.0,0.00014487,2]
[423424430,1780105840000,-211.71548338,0.00014366,2]
[423424453,1780105840000,-150.0,0.00014487,2]
[423424441,1780105840000,-211.71548338,0.00014426,2]
[423424442,1780105840000,-150.0,0.00014438,2]
[423424447,1780105840000,-934.80383794,0.00014466,2]
[423424443,1780105840000,-150.0,0.00014441,2]
[423424446,1780105840000,-211.71548338,0.00014456,2]
[423424448,1780105840000,-150.0,0.00014471,2]
[423424444,1780105840000,-211.71548338,0.00014441,2]
[423424450,1780105840000,-150.0,0.00014475,2]
[423424449,1780105840000,-211.71548338,0.00014472,2]
[423424456,1780105840000,-211.71548338,0.00014502,2]
[423424454,1780105840000,-211.71548338,0.00014487,2]
[423424455,1780105840000,-315.0,0.000145,2]
[423424445,1780105840000,-150.0,0.00014451,2]
[423424429,1780105840000,-150.0,0.00014365,2]
[423424394,1780105840000,-211.71548338,0.00014214,2]
[423424419,1780105840000,-211.71548338,0.0001432,2]
[423424424,1780105840000,-150.0,0.00014344,2]
[423424400,1780105840000,-150.0,0.00014237,2]
[423424397,1780105840000,-150.0,0.00014237,2]
[423424398,1780105840000,-150.0,0.00014237,2]
[423424399,1780105840000,-150.0,0.00014237,2]
[423424404,1780105840000,-150.0,0.00014255,2]
[423424406,1780105840000,-211.71548338,0.0001426,2]
[423424408,1780105840000,-211.71548338,0.00014275,2]
[423424415,1780105840000,-2000.0,0.000143,2]
[423424410,1780105840000,-872.4442919,0.00014284,2]
[423424411,1780105840000,-211.71548338,0.0001429,2]
[423424413,1780105840000,-769.51,0.000143,2]
[423424405,1780105840000,-150.0,0.0001426,2]
[423424407,1780105840000,-150.0,0.00014273,2]
[423424414,1780105840000,-280.27,0.000143,2]
[423424412,1780105840000,-150.0,0.00014292,2]
[423424420,1780105840000,-150.0,0.00014328,2]
[423424423,1780105840000,-150.0,0.00014344,2]
[423424421,1780105840000,-150.0,0.00014331,2]
[423424422,1780105840000,-211.71548338,0.00014335,2]
[423424416,1780105840000,-150.0,0.00014305,2]
[423424418,1780105840000,-150.0,0.0001432,2]
[423424426,1780105840000,-500.0,0.00014347,2]
[423424425,1780105840000,-500.0,0.00014347,2]
[423424417,1780105840000,-211.71548338,0.00014305,2]
[423424409,1780105840000,-150.0,0.00014284,2]
[423424427,1780105840000,-150.0,0.00014351,2]
[423424495,1780105841000,-2000.0,0.00014648,2]
[423424499,1780105841000,-211.71548338,0.00014653,2]
[423424501,1780105841000,-150.0,0.00014658,2]
[423424496,1780105841000,-497.43,0.00014648,2]
[423424493,1780105841000,-2000.0,0.00014648,2]
[423424489,1780105841000,-2000.0,0.00014648,2]
[423424505,1780105841000,-416.75120868,0.00014675,2]
[423424504,1780105841000,-211.71548338,0.00014668,2]
[423424503,1780105841000,-150.0,0.00014668,2]
[423424494,1780105841000,-2000.0,0.00014648,2]
[423424492,1780105841000,-1593.83,0.00014648,2]
[423424500,1780105841000,-150.0,0.00014657,2]
[423424502,1780105841000,-150.0,0.00014665,2]
[423424497,1780105841000,-2000.0,0.00014648,2]
[423424520,1780105841000,-150.0,0.00014705,2]
[423424506,1780105841000,-500.0,0.00014675,2]
[423424509,1780105841000,-6847.7644488,0.00014676,2]
[423424508,1780105841000,-73320.6796386,0.00014676,2]
[423424507,1780105841000,-3526.5363318,0.00014676,2]
[423424512,1780105841000,-500.0,0.00014685,2]
[423424513,1780105841000,-15275.8778917,0.00014686,2]
[423424510,1780105841000,-934.80383794,0.00014683,2]
[423424511,1780105841000,-211.71548338,0.00014684,2]
[423424519,1780105841000,-150.0,0.00014701,2]
[423424518,1780105841000,-211.71548338,0.00014699,2]
[423424515,1780105841000,-106522.9080052,0.00014686,2]
[423424485,1780105841000,-2000.0,0.00014648,2]
[423424516,1780105841000,-150.0,0.00014694,2]
[423424522,1780105841000,-211.71548338,0.00014714,2]
[423424498,1780105841000,-150.0,0.00014653,2]
[423424488,1780105841000,-2000.0,0.00014648,2]
[423424470,1780105841000,-150.0,0.00014558,2]
[423424491,1780105841000,-2000.0,0.00014648,2]
[423424457,1780105841000,-509.89,0.00014504,2]
[423424459,1780105841000,-10958.49,0.00014504,2]
[423424460,1780105841000,-150.99,0.00014504,2]
[423424529,1780105841000,-211.71548338,0.00014759,2]
[423424458,1780105841000,-9999.99,0.00014504,2]
[423424463,1780105841000,-211.71548338,0.00014517,2]
[423424461,1780105841000,-7562.54,0.00014504,2]
[423424464,1780105841000,-150.0,0.00014518,2]
[423424466,1780105841000,-211.71548338,0.00014532,2]
[423424465,1780105841000,-150.0,0.00014532,2]
[423424478,1780105841000,-211.71548338,0.00014608,2]
[423424476,1780105841000,-150.0,0.00014584,2]
[423424477,1780105841000,-211.71548338,0.00014593,2]
[423424467,1780105841000,-22562.5073839,0.00014536,2]
[423424468,1780105841000,-211.71548338,0.00014547,2]
[423424479,1780105841000,-150.0,0.00014612,2]
[423424469,1780105841000,-150.0,0.00014548,2]
[423424471,1780105841000,-150.0,0.00014558,2]
[423424474,1780105841000,-150.0,0.00014578,2]
[423424472,1780105841000,-211.71548338,0.00014562,2]
[423424473,1780105841000,-150.0,0.00014565,2]
[423424475,1780105841000,-211.71548338,0.00014578,2]
[423424483,1780105841000,-150.0,0.00014629,2]
[423424480,1780105841000,-150.0,0.00014621,2]
[423424484,1780105841000,-211.71548338,0.00014638,2]
[423424482,1780105841000,-211.71548338,0.00014623,2]
[423424481,1780105841000,-150.0,0.00014623,2]
[423424486,1780105841000,-2000.0,0.00014648,2]
[423424490,1780105841000,-2000.0,0.00014648,2]
[423424487,1780105841000,-2000.0,0.00014648,2]
[423424462,1780105841000,-150.0,0.00014511,2]
[423424531,1780105841000,-150.0,0.00014772,2]
[423424521,1780105841000,-150.0,0.00014714,2]
[423424557,1780105841000,-418.0,0.00014838,2]
[423424560,1780105841000,-150.0,0.0001484,2]
[423424571,1780105841000,-25000.0,0.00014874,3]
[423424561,1780105841000,-150.0,0.00014844,2]
[423424570,1780105841000,-211.71548338,0.00014865,2]
[423424569,1780105841000,-25000.0,0.00014865,3]
[423424563,1780105841000,-500.0,0.00014846,2]
[423424562,1780105841000,-150.0,0.00014846,2]
[423424564,1780105841000,-25000.0,0.00014847,3]
[423424566,1780105841000,-211.71548338,0.0001485,2]
[423424572,1780105841000,-25000.0,0.00014874,3]
[423424567,1780105841000,-25000.0,0.00014856,3]
[423424565,1780105841000,-150.0,0.0001485,2]
[423424568,1780105841000,-500.0,0.00014864,2]
[423424580,1780105841000,-25000.0,0.00014891,3]
[423424573,1780105841000,-150.0,0.00014877,2]
[423424574,1780105841000,-150.0,0.00014879,2]
[423424579,1780105841000,-25000.0,0.00014891,3]
[423424578,1780105841000,-25000.0,0.00014882,3]
[423424575,1780105841000,-211.71548338,0.0001488,2]
[423424576,1780105841000,-500.0,0.00014882,2]
[423424577,1780105841000,-25000.0,0.00014882,3]
[423424584,1780105841000,-10000.0,0.00014899,2]
[423424583,1780105841000,-211.71548338,0.00014895,2]
[423424582,1780105841000,-150.0,0.00014895,2]
[423424532,1780105841000,-150.0,0.00014772,2]
[423424585,1780105841000,-25000.0,0.000149,3]
[423424587,1780105841000,-54847.65961389,0.000149,2]
[423424586,1780105841000,-25000.0,0.000149,3]
[423424554,1780105841000,-1356.0,0.00014838,2]
[423424553,1780105841000,-1061.0,0.00014838,2]
[423424581,1780105841000,-150.0,0.00014893,2]
[423424555,1780105841000,-1219.0,0.00014838,2]
[423424551,1780105841000,-1600.0,0.00014837,2]
[423424530,1780105841000,-150.0,0.00014767,2]
[423424524,1780105841000,-150.0,0.0001473,2]
[423424528,1780105841000,-150.0,0.00014759,2]
[423424525,1780105841000,-188.0,0.0001474,2]
[423424523,1780105841000,-211.71548338,0.00014729,2]
[423424526,1780105841000,-211.71548338,0.00014744,2]
[423424527,1780105841000,-150.0,0.00014752,2]
[423424542,1780105841000,-150.0,0.00014799,2]
[423424536,1780105841000,-500.0,0.00014773,2]
[423424534,1780105841000,-295.37631974,0.00014773,2]
[423424535,1780105841000,-943.27,0.00014773,2]
[423424539,1780105841000,-487.9012258,0.00014773,2]
[423424545,1780105841000,-150.0,0.00014804,2]
[423424533,1780105841000,-500.0,0.00014773,2]
[423424544,1780105841000,-25559.193866,0.00014801,2]
[423424541,1780105841000,-211.71548338,0.0001479,2]
[423424550,1780105841000,-211.71548338,0.00014835,2]
[423424552,1780105841000,-243.0,0.00014838,2]
[423424559,1780105841000,-6066.0,0.00014838,2]
[423424558,1780105841000,-150.0,0.00014838,2]
[423424548,1780105841000,-150.0,0.0001482,2]
[423424556,1780105841000,-150.0,0.00014838,2]
[423424538,1780105841000,-500.0,0.00014773,2]
[423424540,1780105841000,-211.71548338,0.00014774,2]
[423424543,1780105841000,-190.72823264,0.000148,7]
[423424549,1780105841000,-211.71548338,0.0001482,2]
[423424547,1780105841000,-211.71548338,0.00014805,2]
[423424546,1780105841000,-150.0,0.00014805,2]
[423424537,1780105841000,-500.0,0.00014773,2]
[423424623,1780105842000,-246.412936,0.00014986,2]
[423424635,1780105842000,-500.0,0.00014999,2]
[423424616,1780105842000,-150.24,0.00014985,2]
[423424617,1780105842000,-156.44860236,0.00014986,2]
[423424615,1780105842000,-237.44,0.00014985,2]
[423424620,1780105842000,-150.34164345,0.00014986,2]
[423424619,1780105842000,-228.69569303,0.00014986,2]
[423424625,1780105842000,-214.21081884,0.00014986,2]
[423424634,1780105842000,-500.0,0.00014999,2]
[423424624,1780105842000,-273.46900396,0.00014986,2]
[423424626,1780105842000,-211.71548338,0.00014986,2]
[423424618,1780105842000,-151.9125752,0.00014986,2]
[423424627,1780105842000,-151.0,0.00014997,2]
[423424631,1780105842000,-132206.5615575,0.00014998,2]
[423424628,1780105842000,-500.0,0.00014997,2]
[423424630,1780105842000,-500.0,0.00014997,2]
[423424636,1780105842000,-500.0,0.00014999,2]
[423424629,1780105842000,-500.0,0.00014997,2]
[423424633,1780105842000,-500.0,0.00014999,2]
[423424646,1780105842000,-500.0,0.00014999,2]
[423424645,1780105842000,-522.51518048,0.00014999,4]
[423424647,1780105842000,-500.0,0.00014999,2]
[423424649,1780105842000,-452.6,0.00014999,2]
[423424648,1780105842000,-500.0,0.00014999,2]
[423424622,1780105842000,-181.02063174,0.00014986,2]
[423424632,1780105842000,-4434.4980777,0.00014998,2]
[423424614,1780105842000,-287.98,0.00014985,2]
[423424600,1780105842000,-150.0,0.00014941,2]
[423424621,1780105842000,-232.60106033,0.00014986,2]
[423424638,1780105842000,-500.0,0.00014999,2]
[423424592,1780105842000,-934.80383794,0.000149,2]
[423424594,1780105842000,-150.0,0.00014913,2]
[423424596,1780105842000,-16360.0549899,0.0001492,2]
[423424588,1780105842000,-4564.10757704,0.000149,2]
[423424591,1780105842000,-8228.59595473,0.000149,2]
[423424590,1780105842000,-605.60164503,0.000149,2]
[423424593,1780105842000,-211.71548338,0.00014911,2]
[423424595,1780105842000,-150.0,0.00014915,2]
[423424598,1780105842000,-211.71548338,0.00014926,2]
[423424597,1780105842000,-1527.9427781,0.0001492,2]
[423424589,1780105842000,-4154.99007666,0.000149,2]
[423424599,1780105842000,-150.0,0.00014939,2]
[423424601,1780105842000,-211.71548338,0.00014941,2]
[423424606,1780105842000,-211.71548338,0.00014971,2]
[423424603,1780105842000,-150.0,0.0001495,2]
[423424607,1780105842000,-175.5759054,0.00014974,2]
[423424604,1780105842000,-211.71548338,0.00014956,2]
[423424608,1780105842000,-3650.4216899,0.00014974,2]
[423424610,1780105842000,-1096.89,0.00014985,2]
[423424602,1780105842000,-5703.0270205,0.00014948,2]
[423424609,1780105842000,-340.9301167,0.00014974,2]
[423424611,1780105842000,-641.8,0.00014985,2]
[423424605,1780105842000,-150.40601128,0.00014959,2]
[423424612,1780105842000,-2000.0,0.00014985,2]
[423424613,1780105842000,-378.54,0.00014985,2]
[423424643,1780105842000,-500.0,0.00014999,2]
[423424686,1780105842000,-500.0,0.00014999,2]
[423424639,1780105842000,-500.0,0.00014999,2]
[423424674,1780105842000,-500.0,0.00014999,2]
[423424685,1780105842000,-581.97252477,0.00014999,2]
[423424677,1780105842000,-500.0,0.00014999,2]
[423424676,1780105842000,-500.0,0.00014999,2]
[423424678,1780105842000,-500.0,0.00014999,2]
[423424680,1780105842000,-500.0,0.00014999,2]
[423424684,1780105842000,-500.0,0.00014999,2]
[423424679,1780105842000,-500.0,0.00014999,2]
[423424681,1780105842000,-385.69339171,0.00014999,2]
[423424683,1780105842000,-500.0,0.00014999,2]
[423424682,1780105842000,-500.0,0.00014999,2]
[423424701,1780105842000,-6661968.61044838,0.00015,2]
[423424696,1780105842000,-500.0,0.00014999,2]
[423424692,1780105842000,-500.0,0.00014999,2]
[423424697,1780105842000,-410.30161227,0.00014999,2]
[423424689,1780105842000,-500.0,0.00014999,2]
[423424687,1780105842000,-500.0,0.00014999,2]
[423424698,1780105842000,-300.0,0.00014999,2]
[423424690,1780105842000,-500.0,0.00014999,2]
[423424691,1780105842000,-500.0,0.00014999,2]
[423424693,1780105842000,-500.0,0.00014999,2]
[423424699,1780105842000,-300.0,0.00014999,2]
[423424694,1780105842000,-500.0,0.00014999,2]
[423424695,1780105842000,-500.0,0.00014999,2]
[423424700,1780105842000,-300.0,0.00014999,2]
[423424675,1780105842000,-601.76,0.00014999,2]
[423424667,1780105842000,-943.27,0.00014999,2]
[423424641,1780105842000,-500.0,0.00014999,2]
[423424669,1780105842000,-500.0,0.00014999,2]
[423424644,1780105842000,-500.0,0.00014999,3]
[423424642,1780105842000,-512.54439461,0.00014999,2]
[423424637,1780105842000,-500.0,0.00014999,2]
[423424640,1780105842000,-500.0,0.00014999,2]
[423424650,1780105842000,-943.27,0.00014999,2]
[423424651,1780105842000,-943.27,0.00014999,2]
[423424661,1780105842000,-943.27,0.00014999,2]
[423424652,1780105842000,-943.27,0.00014999,2]
[423424655,1780105842000,-943.27,0.00014999,2]
[423424654,1780105842000,-943.27,0.00014999,2]
[423424653,1780105842000,-943.27,0.00014999,2]
[423424657,1780105842000,-943.27,0.00014999,2]
[423424672,1780105842000,-500.0,0.00014999,2]
[423424660,1780105842000,-943.27,0.00014999,2]
[423424656,1780105842000,-943.27,0.00014999,2]
[423424668,1780105842000,-943.4608362,0.00014999,2]
[423424670,1780105842000,-500.0,0.00014999,2]
[423424666,1780105842000,-943.27,0.00014999,2]
[423424665,1780105842000,-943.27,0.00014999,2]
[423424671,1780105842000,-500.0,0.00014999,2]
[423424664,1780105842000,-943.27,0.00014999,2]
[423424673,1780105842000,-500.0,0.00014999,2]
[423424662,1780105842000,-943.27,0.00014999,2]
[423424658,1780105842000,-943.27,0.00014999,2]
[423424659,1780105842000,-943.27,0.00014999,2]
[423424663,1780105842000,-943.27,0.00014999,2]
[423424704,1780105843000,-371.035,0.00015,2]
[423424703,1780105843000,-343.16884859,0.00015,2]
[423424702,1780105843000,-227795.28986199,0.00015,2]
[423424705,1780105844000,-1530.77808329,8.601e-05,2]
[423424706,1780105844000,-951.41186775,8.601e-05,2]
[423424709,1780105844000,-779.53222084,8.601e-05,2]
[423424708,1780105844000,-5370.785,8.601e-05,2]
[423424707,1780105844000,-526.29581916,8.601e-05,2]
[423424834,1780105846000,-480.88745299,8.601e-05,2]
[423424832,1780105846000,-635.95299509,8.601e-05,2]
[423424833,1780105846000,-309.12,8.601e-05,2]
[423424848,1780105847000,-636.58716397,0.00014738,2]
[423424839,1780105847000,-903.73261565,8.601e-05,2]
[423424841,1780105847000,-1897.46000004,8.601e-05,2]
[423424840,1780105847000,-1780.94882574,8.601e-05,2]
[423424842,1780105847000,-3398.07899156,8.601e-05,2]
[423424844,1780105847000,-6536.10693626,8.601e-05,2]
[423424846,1780105847000,-932.0,0.00011838,2]
[423424847,1780105847000,-636.58716399,0.00014576,2]
[423424843,1780105847000,-309.16438851,8.601e-05,2]
[423424850,1780105847000,-3607.86576355,0.00015,2]
[423424849,1780105847000,-932.0,0.00014838,2]
[423424851,1780105847000,-284.32693871,0.00015,2]
[423424852,1780105847000,-6354.90465723,0.00015,2]
[423424845,1780105847000,-7824.17870312,8.601e-05,2]
[423424853,1780105847000,-1163.42316682,0.00015,2]
[423424854,1780105847000,-1842.46,0.00015,2]
[423424855,1780105847000,-353228.89247402,0.00015,2]
[423424856,1780105847000,-885.46146115,0.00015,2]
[423424857,1780105863000,152.0,8.237e-05,7]
[423424858,1780105864000,152.0,8.237e-05,7]